bitfinex-derivatives/quotes_BTCF0:USTF0_20220103
["timestamp","ask_amount","ask_price","bid_price","bid_amount"]
[1641235759042,0.19,46460.0,46459.0,0.18]
[1641235759240,0.19,46460.0,46458.0,0.321355]
[1641235759539,0.19,46460.0,46459.0,0.322289]
[1641235759740,0.19,46460.0,46459.0,0.26033567]
[1641235759942,0.19,46460.0,46459.0,0.14033567]
[1641235760139,0.19,46460.0,46459.0,0.64480767]
[1641235760340,0.82118411,46466.0,46459.0,0.64480767]
[1641235760641,0.82118411,46466.0,46459.0,0.46480767]
[1641235760842,0.82118411,46466.0,46459.0,0.14033567]
[1641235761040,1.01518411,46466.0,46459.0,0.14033567]
[1641235762241,0.82118411,46466.0,46459.0,0.14033567]
[1641235763042,0.82118411,46465.0,46459.0,0.14033567]
[1641235763244,0.90156411,46465.0,46459.0,0.14033567]
[1641235763442,1.08156411,46465.0,46459.0,0.14033567]
[1641235763643,0.18,46461.0,46459.0,0.14033567]
[1641235765046,0.186,46461.0,46459.0,0.14033567]
[1641235765446,0.366,46461.0,46459.0,0.14033567]
[1641235765848,1.18718411,46461.0,46459.0,0.14033567]
[1641235766246,1.00118411,46461.0,46459.0,0.14033567]
[1641235766747,0.18,46461.0,46459.0,0.14033567]
[1641235766950,0.365,46461.0,46459.0,0.14033567]
[1641235767149,0.185,46461.0,46459.0,0.14033567]
[1641235768248,0.185,46461.0,46460.0,0.02252224]
[1641235768453,0.20152384,46475.0,46459.0,0.14033567]
[1641235768649,0.18,46475.0,46460.0,0.02152269]
[1641235769050,0.33233567,46469.0,46460.0,0.02152269]
[1641235770470,0.14033567,46469.0,46460.0,0.02152269]
[1641235771072,0.33433567,46469.0,46460.0,0.20152269]
[1641235771370,0.33433567,46469.0,46460.0,0.02152269]
[1641235771570,0.33433567,46469.0,46460.0,0.62806435]
[1641235772373,0.14033567,46469.0,46460.0,0.02152269]
[1641235773070,0.32233567,46469.0,46460.0,0.15652269]
[1641235774173,0.12153833,46468.0,46460.0,0.02152269]
[1641235775073,0.31153833,46468.0,46460.0,0.02152269]
[1641235775472,0.12153833,46467.0,46460.0,0.02152269]
[1641235775973,0.19,46468.0,46460.0,0.02152269]
[1641235776377,0.14033567,46469.0,46460.0,0.02152269]
[1641235776574,0.12153687,46467.0,46460.0,0.02152269]
[1641235776873,0.12153687,46468.0,46460.0,0.02152269]
[1641235777073,0.33133567,46469.0,46460.0,0.02152269]
[1641235777475,0.1215362,46468.0,46460.0,0.02152269]
[1641235779077,0.3125362,46468.0,46460.0,0.02152269]
[1641235779577,0.1215362,46467.0,46460.0,0.02152269]
[1641235779778,0.1215362,46467.0,46460.0,0.20152269]
[1641235780980,0.3125362,46467.0,46460.0,0.20152269]
[1641235781579,0.191,46467.0,46460.0,0.20152269]
[1641235782481,0.14033567,46469.0,46460.0,0.20152269]
[1641235783081,0.33233567,46469.0,46460.0,0.20152269]
[1641235783279,0.12153333,46468.0,46460.0,0.20152269]
[1641235784983,0.31253333,46468.0,46460.0,0.20152269]
[1641235785382,0.31253333,46468.0,46460.0,0.02152269]
[1641235785583,0.12153333,46467.0,46460.0,0.20152269]
[1641235786588,0.12153333,46467.0,46461.0,0.324676]
[1641235786985,0.31253333,46467.0,46461.0,0.324676]
[1641235787385,0.12153333,46466.0,46461.0,0.324676]
[1641235787887,0.191,46467.0,46461.0,0.324676]
[1641235788485,0.12153301,46466.0,46461.0,0.324676]
[1641235788685,0.191,46467.0,46461.0,0.324676]
[1641235789088,0.14033567,46469.0,46461.0,0.324676]
[1641235789089,0.191,46466.0,46461.0,0.324676]
[1641235790988,0.192,46466.0,46461.0,0.324676]
[1641235792491,0.14033567,46469.0,46461.0,0.324676]
[1641235792991,0.33333567,46469.0,46461.0,0.324676]
[1641235793393,0.12153349,46468.0,46461.0,0.324676]
[1641235794193,0.12153349,46468.0,46460.0,0.62806435]
[1641235794992,0.31053349,46468.0,46460.0,0.62806435]
[1641235795393,0.31053349,46468.0,46460.0,0.02152269]
[1641235795593,0.12153349,46467.0,46460.0,0.20152269]
[1641235795894,0.12153349,46467.0,46460.0,0.02152269]
[1641235796100,0.12153349,46467.0,46461.0,0.321066]
[1641235796696,0.12153349,46468.0,46461.0,0.321066]
[1641235797096,0.12153349,46466.0,46460.0,0.02152269]
[1641235797295,0.18523349,46466.0,46460.0,0.02152269]
[1641235797694,0.12153349,46465.0,46460.0,0.02152269]
[1641235799101,0.30753349,46465.0,46460.0,0.02152269]
[1641235799398,0.186,46465.0,46460.0,0.02152269]
[1641235799998,0.12154076,46464.0,46460.0,0.02152269]
[1641235800600,0.14033567,46469.0,46460.0,0.02152269]
[1641235801301,0.12153963,46468.0,46460.0,0.02152269]
[1641235803100,0.30653963,46468.0,46460.0,0.02152269]
[1641235803701,0.12153963,46467.0,46460.0,0.02152269]
[1641235805103,0.30753963,46467.0,46460.0,0.02152269]
[1641235805304,0.186,46467.0,46460.0,0.02152269]
[1641235805903,0.12153963,46466.0,46460.0,0.02152269]
[1641235807106,0.30753963,46466.0,46460.0,0.02152269]
[1641235807305,0.186,46466.0,46460.0,0.02152269]
[1641235807705,0.12153963,46465.0,46460.0,0.02152269]
[1641235809007,0.12153963,46468.0,46461.0,0.02152203]
[1641235809307,0.14033567,46469.0,46461.0,0.02152203]
[1641235809308,0.186,46465.0,46461.0,0.08106203]
[1641235810520,0.14033567,46469.0,46461.0,0.08106203]
[1641235811023,0.12153477,46468.0,46461.0,0.08106203]
[1641235812022,0.12153477,46468.0,46461.0,0.26106203]
[1641235812221,0.12153477,46468.0,46461.0,0.08106203]
[1641235813022,0.12153477,46468.0,46461.0,0.26106203]
[1641235813222,0.30953477,46468.0,46461.0,0.08106203]
[1641235813422,0.30953477,46468.0,46461.0,0.26106203]
[1641235813624,0.12153477,46467.0,46461.0,0.08106203]
[1641235814523,0.12153477,46467.0,46461.0,0.26106203]
[1641235814923,0.12153477,46468.0,46461.0,0.26106203]
[1641235815130,0.194,46467.0,46461.0,0.08106203]
[1641235815324,0.31553217,46467.0,46461.0,0.08106203]
[1641235815623,0.12153217,46466.0,46461.0,0.08106203]
[1641235817122,0.30853217,46466.0,46461.0,0.08106203]
[1641235817627,0.187,46466.0,46461.0,0.08106203]
[1641235818226,0.12153239,46465.0,46461.0,0.08106203]
[1641235818425,0.187,46466.0,46461.0,0.08106203]
[1641235818624,0.14033567,46469.0,46461.0,0.08106203]
[1641235819125,0.12153146,46468.0,46461.0,0.08106203]
[1641235820829,0.12153146,46468.0,46466.0,0.14033567]
[1641235821231,0.188,46468.0,46466.0,0.14033567]
[1641235821430,0.12153146,46467.0,46466.0,0.14033567]
[1641235823132,0.19,46467.0,46466.0,0.14033567]
[1641235823332,0.31153146,46467.0,46466.0,0.14033567]
[1641235824633,0.12153146,46467.0,46466.0,0.14033567]
[1641235825135,0.31253146,46467.0,46466.0,0.14033567]
[1641235825333,0.191,46467.0,46466.0,0.14033567]
[1641235825735,0.31253146,46467.0,46466.0,0.14033567]
[1641235826538,0.12153146,46467.0,46466.0,0.14033567]
[1641235826937,0.12153146,46474.0,46466.0,0.14033567]
[1641235827140,0.23882,46475.0,46466.0,0.14033567]
[1641235827141,0.31053146,46467.0,46466.0,0.14033567]
[1641235827438,0.31153146,46467.0,46457.0,1.21361394]
[1641235827640,1.304,46458.0,46457.0,1.18221394]
[1641235827838,1.40118243,46458.0,46450.0,1.45380177]
[1641235828139,0.181,46452.0,46444.0,1.45380177]
[1641235828340,0.182,46452.0,46451.0,1.21545063]
[1641235828837,0.44386713,46452.0,46451.0,1.21545063]
[1641235829037,0.44286713,46452.0,46446.0,0.40378764]
[1641235829237,0.181,46447.0,46446.0,0.40378764]
[1641235829438,0.27022,46447.0,46446.0,0.40378764]
[1641235830041,0.27022,46447.0,46443.0,0.14010868]
[1641235830240,0.26922,46447.0,46443.0,0.14010868]
[1641235830841,0.26922,46447.0,46439.0,0.14033567]
[1641235831241,0.45622,46447.0,46439.0,0.14033567]
[1641235831941,0.45622,46447.0,46440.0,0.13892731]
[1641235832543,0.26922,46447.0,46440.0,0.13892731]
[1641235832745,0.08922,46447.0,46440.0,0.13892731]
[1641235833145,0.27822,46447.0,46440.0,0.13892731]
[1641235834545,0.08922,46447.0,46440.0,0.13892731]
[1641235834749,0.18,46451.0,46440.0,0.13892731]
[1641235835151,0.368,46451.0,46440.0,0.13892731]
[1641235835348,0.188,46451.0,46440.0,0.13892731]
[1641235836649,0.14033567,46452.0,46440.0,0.13892731]
[1641235837147,0.32333567,46452.0,46440.0,0.13892731]
[1641235837746,1.17296768,46442.0,46440.0,0.13892731]
[1641235837950,1.17296768,46442.0,46441.0,0.001]
[1641235838648,1.17296768,46444.0,46440.0,0.13892731]
[1641235838949,0.183,46452.0,46443.0,0.14033567]
[1641235839146,0.78240545,46457.0,46444.0,0.009794]
[1641235839347,0.78240545,46457.0,46444.0,0.34198379]
[1641235839546,0.18,46464.0,46444.0,0.34198379]
[1641235839749,1.17184865,46456.0,46444.0,0.34198379]
[1641235839946,1.17184865,46456.0,46446.0,0.18]
[1641235840147,1.17184865,46456.0,46445.0,0.01215547]
[1641235840345,1.17184865,46456.0,46447.0,0.32242]
[1641235840549,1.17184865,46456.0,46447.0,0.06639]
[1641235840848,0.18,46464.0,46447.0,0.06639]
[1641235841050,0.18,46464.0,46451.0,0.14033567]
[1641235841249,0.186,46456.0,46451.0,0.14033567]
[1641235841448,0.18,46454.0,46447.0,0.155]
[1641235841649,0.24998,46454.0,46447.0,0.155]
[1641235842250,0.001,46449.0,46447.0,0.155]
[1641235842550,0.001,46448.0,46443.0,0.14033567]
[1641235842750,0.24998,46454.0,46443.0,0.14033567]
[1641235843153,0.43498,46454.0,46443.0,0.14033567]
[1641235843650,0.18,46448.0,46443.0,0.14033567]
[1641235844553,0.06998,46454.0,46443.0,0.14033567]
[1641235844752,0.14033567,46459.0,46452.0,0.02152613]
[1641235845352,0.32633567,46459.0,46444.0,0.334865]
[1641235845551,0.32633567,46459.0,46453.0,0.02152577]
[1641235845755,0.32633567,46459.0,46453.0,0.10934577]
[1641235846555,0.14033567,46459.0,46453.0,0.10934577]
[1641235846754,0.14033567,46459.0,46453.0,0.08782]
[1641235847356,0.32633567,46459.0,46453.0,0.08782]
[1641235847955,0.8191419,46457.0,46453.0,0.08782]
[1641235849359,1.0051419,46457.0,46453.0,0.08782]
[1641235850560,0.8191419,46457.0,46453.0,0.08782]
[1641235850862,0.8191419,46457.0,46450.0,0.02152737]
[1641235851062,0.8191419,46457.0,46454.0,0.14033567]
[1641235851262,1.0051419,46457.0,46454.0,0.14033567]
[1641235851860,0.18,46455.0,46444.0,0.009794]
[1641235852065,0.18,46445.0,46438.0,0.60664437]
[1641235852265,0.18,46444.0,46438.0,0.60664437]
[1641235852460,0.18,46441.0,46438.0,0.60664437]
[1641235852860,0.18,46441.0,46440.0,0.001]
[1641235853061,0.28067134,46441.0,46440.0,0.001]
[1641235853261,0.46567134,46441.0,46440.0,0.001]
[1641235853466,0.46567134,46441.0,46438.0,0.60664437]
[1641235853862,0.46567134,46441.0,46440.0,0.001]
[1641235854663,0.14033567,46444.0,46440.0,0.010794]
[1641235854863,0.14033567,46444.0,46443.0,0.181]
[1641235855064,0.14033567,46449.0,46443.0,0.181]
[1641235855263,0.175,46444.0,46443.0,0.18]
[1641235855463,0.175,46444.0,46443.0,0.001]
[1641235855663,0.175,46444.0,46443.0,0.06]
[1641235855861,0.175,46444.0,46443.0,0.505474]
[1641235856262,0.175,46444.0,46443.0,0.34700146]
[1641235856463,0.0001,46444.0,46443.0,0.35915761]
[1641235856663,0.8191419,46446.0,46443.0,0.35815761]
[1641235856865,0.14033567,46449.0,46443.0,0.35815761]
[1641235857263,0.14033567,46449.0,46444.0,0.19215615]
[1641235857463,0.14033567,46449.0,46443.0,0.54100146]
[1641235857665,0.14033567,46449.0,46443.0,0.21652746]
[1641235858264,0.14033567,46449.0,46446.0,0.18]
[1641235858466,0.14033567,46449.0,46448.0,0.60664437]
[1641235858665,0.14033567,46449.0,46448.0,0.69499437]
[1641235859366,0.14033567,46449.0,46448.0,0.28335]
[1641235859764,0.14033567,46449.0,46448.0,0.46335]
[1641235860166,0.14033567,46449.0,46448.0,0.28335]
[1641235860365,0.14033567,46449.0,46448.0,0.195]
[1641235860566,0.14033567,46449.0,46447.0,0.18263203]
[1641235860764,0.14033567,46449.0,46448.0,0.78067177]
[1641235861365,0.14033567,46449.0,46448.0,0.97367177]
[1641235862665,0.14033567,46449.0,46448.0,0.78067177]
[1641235863365,0.14033567,46449.0,46448.0,0.97467177]
[1641235863969,0.14033567,46449.0,46448.0,0.36683803]
[1641235864666,0.14033567,46449.0,46448.0,0.17283803]
[1641235865367,0.14033567,46449.0,46448.0,0.36583803]
[1641235866067,0.14033567,46449.0,46448.0,0.97367723]
[1641235866679,0.14033567,46449.0,46448.0,0.78067723]
[1641235867267,0.14033567,46449.0,46448.0,0.97467723]
[1641235868668,0.14033567,46449.0,46448.0,0.78067723]
[1641235869269,0.14033567,46449.0,46448.0,0.97367723]
[1641235871170,0.14033567,46449.0,46448.0,0.78067723]
[1641235871372,0.14033567,46449.0,46448.0,0.97367723]
[1641235872672,0.14033567,46449.0,46448.0,0.6078392]
[1641235872874,0.14033567,46449.0,46447.0,0.6176332]
[1641235873274,0.14033567,46449.0,46448.0,0.194]
[1641235874587,0.14033567,46449.0,46447.0,0.009794]
[1641235874792,0.19840567,46449.0,46446.0,0.6078392]
[1641235875388,0.19840567,46449.0,46447.0,0.192]
[1641235876792,0.19840567,46449.0,46443.0,0.6078392]
[1641235876990,0.19840567,46449.0,46440.0,0.6078392]
[1641235877392,0.36640567,46449.0,46443.0,0.184]
[1641235877591,0.30833567,46449.0,46443.0,0.184]
[1641235878193,1.17067648,46444.0,46443.0,0.184]
[1641235878693,1.17067648,46444.0,46442.0,0.62936983]
[1641235879295,1.17067648,46446.0,46442.0,0.21453063]
[1641235880094,1.17067648,46446.0,46445.0,0.18]
[1641235880295,1.17067648,46446.0,46445.0,0.26301831]
[1641235881096,1.17067648,46446.0,46445.0,0.08301831]
[1641235881296,1.17067648,46448.0,46445.0,0.27901831]
[1641235881997,1.17067648,46448.0,46447.0,0.18]
[1641235882196,1.17067648,46448.0,46446.0,0.324999]
[1641235882397,1.17067648,46448.0,46446.0,0.504999]
[1641235883200,1.31101215,46449.0,46446.0,0.504999]
[1641235883399,1.31101215,46449.0,46446.0,0.699999]
[1641235883801,1.17067648,46448.0,46446.0,0.699999]
[1641235884700,1.17067648,46448.0,46446.0,0.504999]
[1641235884900,1.17067648,46447.0,46446.0,0.504999]
[1641235885108,0.14033567,46449.0,46446.0,0.514793]
[1641235885401,0.14033567,46462.0,46448.0,0.14133567]
[1641235885603,0.14033567,46462.0,46455.0,0.18]
[1641235885802,0.14033567,46462.0,46456.0,0.009794]
[1641235886001,0.14033567,46462.0,46456.0,0.012645]
[1641235887403,0.14033567,46462.0,46456.0,0.207645]
[1641235887603,0.94135376,46467.0,46456.0,0.207645]
[1641235888006,0.12155519,46466.0,46456.0,0.207645]
[1641235888506,0.12155519,46466.0,46462.0,0.02152144]
[1641235889306,0.12155519,46466.0,46462.0,0.21352144]
[1641235890809,0.12155519,46466.0,46453.0,0.08608575]
[1641235890810,0.18,46463.0,46448.0,0.48698149]
[1641235891011,0.18,46458.0,46448.0,0.48698149]
[1641235891408,0.14033567,46462.0,46448.0,0.67498149]
[1641235891810,0.12155519,46461.0,46449.0,0.02152727]
[1641235892011,0.18,46458.0,46449.0,0.02152727]
[1641235892411,0.12155519,46457.0,46448.0,0.32833567]
[1641235892609,0.18,46453.0,46442.0,0.48493567]
[1641235892810,0.06889,46453.0,46442.0,0.48493567]
[1641235893211,0.18,46452.0,46444.0,1.21585908]
[1641235893410,0.14033567,46450.0,46444.0,1.21585908]
[1641235894211,0.14033567,46450.0,46442.0,0.36612989]
[1641235894811,0.14033567,46450.0,46443.0,0.32033567]
[1641235895011,0.94135376,46459.0,46444.0,0.18]
[1641235895214,0.94135376,46459.0,46446.0,0.02152806]
[1641235895414,0.193,46450.0,46449.0,0.14033567]
[1641235896013,0.193,46450.0,46449.0,0.16286181]
[1641235896214,0.94135376,46459.0,46449.0,0.48406081]
[1641235896415,0.94135376,46459.0,46453.0,0.18]
[1641235896614,0.94135376,46459.0,46454.0,0.009794]
[1641235896814,0.14033567,46459.0,46454.0,0.408745]
[1641235897313,0.14033567,46459.0,46454.0,0.604745]
[1641235897912,0.14033567,46459.0,46458.0,0.20152254]
[1641235898114,0.14033567,46459.0,46458.0,0.02152254]
[1641235898815,0.14033567,46459.0,46458.0,0.20151824]
[1641235899029,0.0001,46480.0,46459.0,0.05267]
[1641235899218,0.0001,46480.0,46478.0,0.18]
[1641235899415,0.0001,46480.0,46478.0,0.09038]
[1641235899619,0.0001,46480.0,46479.0,0.14033567]
[1641235900218,0.1801,46480.0,46479.0,0.14033567]
[1641235900619,0.0001,46480.0,46479.0,0.14033567]
[1641235901320,0.0001,46480.0,46479.0,0.30833567]
[1641235901619,0.0011,46480.0,46479.0,0.30833567]
[1641235902223,0.0001,46480.0,46479.0,0.30833567]
[1641235902619,0.0001,46480.0,46479.0,0.14033567]
[1641235903020,0.0001,46480.0,46479.0,0.22562567]
[1641235903420,0.0001,46480.0,46479.0,0.40362567]
[1641235904725,0.0001,46480.0,46479.0,0.22562567]
[1641235905323,0.0001,46480.0,46479.0,0.38562567]
[1641235906224,0.0001,46480.0,46479.0,0.40713649]
[1641235906625,0.0001,46480.0,46479.0,0.22562567]
[1641235907428,0.0001,46480.0,46479.0,0.40962567]
[1641235908640,0.0001,46480.0,46479.0,0.22562567]
[1641235908843,0.0001,46480.0,46479.0,0.14033567]
[1641235909440,0.0001,46480.0,46479.0,0.31633567]
[1641235910743,0.0001,46480.0,46479.0,0.14033567]
[1641235911344,0.0001,46480.0,46479.0,0.31633567]
[1641235913247,0.0001,46480.0,46479.0,0.14033567]
[1641235913548,0.0001,46480.0,46479.0,0.30133567]
[1641235914649,0.0001,46480.0,46479.0,0.14033567]
[1641235915350,0.0001,46480.0,46479.0,0.31733567]
[1641235916750,0.0001,46480.0,46479.0,0.14033567]
[1641235917355,0.0001,46480.0,46479.0,0.31833567]
[1641235917553,0.0001,46480.0,46479.0,0.178]
[1641235918055,0.0001,46480.0,46479.0,0.31833567]
[1641235918856,0.0001,46480.0,46479.0,0.14033567]
[1641235919457,0.0001,46480.0,46479.0,0.31933567]
[1641235920757,0.0001,46480.0,46479.0,0.14033567]
[1641235921559,0.0001,46480.0,46479.0,0.32633567]
[1641235922259,0.0001,46480.0,46479.0,0.34784639]
[1641235922462,0.0001,46480.0,46479.0,0.52784639]
[1641235922661,0.0001,46480.0,46479.0,0.34184639]
[1641235923462,0.0001,46480.0,46479.0,0.52784639]
[1641235924863,0.0001,46480.0,46479.0,0.34784639]
[1641235925266,0.0001,46480.0,46479.0,0.16184639]
[1641235925464,0.0001,46480.0,46479.0,0.34684639]
[1641235926663,0.0001,46480.0,46479.0,0.16184639]
[1641235927264,0.8246055,46480.0,46479.0,0.16184639]
[1641235927465,0.8246055,46480.0,46479.0,0.33284639]
[1641235928866,0.8246055,46480.0,46479.0,0.16184639]
[1641235928867,0.0001,46480.0,46479.0,0.16184639]
[1641235929466,0.0001,46480.0,46479.0,0.33584639]
[1641235929668,0.82405288,46480.0,46479.0,0.33584639]
[1641235930667,0.82405288,46480.0,46479.0,0.16184639]
[1641235930868,0.0001,46480.0,46479.0,0.16184639]
[1641235931468,0.0001,46480.0,46479.0,0.33584639]
[1641235931668,0.0001,46480.0,46479.0,0.51584639]
[1641235931867,0.82567116,46480.0,46479.0,0.51584639]
[1641235932470,0.18,46496.0,46479.0,0.51684639]
[1641235932670,0.18,46496.0,46486.0,0.18]
[1641235932872,1.09511399,46498.0,46486.0,0.27426]
[1641235933071,0.18,46496.0,46486.0,0.27426]
[1641235933472,0.18,46496.0,46486.0,0.46526]
[1641235933873,0.18,46495.0,46486.0,0.46526]
[1641235934273,0.18,46495.0,46489.0,0.28067134]
[1641235935477,0.18,46495.0,46489.0,0.47067134]
[1641235935775,0.90068939,46498.0,46489.0,0.49217971]
[1641235936174,0.90068939,46498.0,46493.0,0.18]
[1641235936375,0.90068939,46498.0,46497.0,0.14033567]
[1641235936575,0.90068939,46498.0,46497.0,0.22643567]
[1641235937576,0.90068939,46498.0,46497.0,0.33433567]
[1641235938579,0.18,46503.0,46497.0,0.33433567]
[1641235938777,0.009794,46504.0,46497.0,0.14033567]
[1641235939180,0.12147354,46503.0,46497.0,0.14033567]
[1641235939584,0.12147354,46503.0,46497.0,0.31633567]
[1641235940382,0.18,46499.0,46497.0,0.31633567]
[1641235940585,0.009794,46502.0,46497.0,0.31633567]
[1641235940782,0.189794,46502.0,46497.0,0.14033567]
[1641235941083,0.18,46498.0,46497.0,0.14033567]
[1641235941281,0.12147579,46501.0,46497.0,0.14033567]
[1641235941483,0.181,46498.0,46497.0,0.14033567]
[1641235941694,0.009794,46502.0,46497.0,0.14033567]
[1641235943496,0.1671,46500.0,46497.0,0.32333567]
[1641235943694,0.3471,46500.0,46497.0,0.32333567]
[1641235944196,0.1671,46500.0,46497.0,0.32333567]
[1641235945396,0.0001,46500.0,46497.0,0.23110567]
[1641235945598,0.1561,46500.0,46497.0,0.41810567]
[1641235946796,0.0001,46500.0,46497.0,0.23110567]
[1641235947297,0.0001,46500.0,46499.0,0.02150094]
[1641235948598,0.0001,46500.0,46499.0,0.16183661]
[1641235949605,0.0001,46500.0,46499.0,0.35583661]
[1641235950818,0.0001,46500.0,46499.0,0.16183661]
[1641235951406,0.0001,46500.0,46499.0,0.34183661]
[1641235951605,0.0001,46500.0,46499.0,0.53483661]
[1641235952204,0.0001,46500.0,46499.0,0.35483661]
[1641235952805,0.0001,46500.0,46499.0,0.16183661]
[1641235953603,0.0001,46500.0,46499.0,0.35183661]
[1641235953804,0.0001,46500.0,46499.0,0.35283661]
[1641235954004,0.0001,46500.0,46499.0,0.53283661]
[1641235954204,0.0001,46500.0,46499.0,0.35283661]
[1641235954405,0.0001,46500.0,46499.0,0.53283661]
[1641235954608,0.0001,46500.0,46499.0,0.85391361]
[1641235954805,0.0001,46500.0,46499.0,0.66391361]
[1641235955205,0.83234571,46504.0,46500.0,0.34824636]
[1641235955408,0.83234571,46504.0,46503.0,0.18]
[1641235955606,0.83234571,46504.0,46503.0,0.181]
[1641235955809,0.83234571,46505.0,46503.0,0.181635]
[1641235956005,0.83234571,46505.0,46503.0,0.180635]
[1641235956607,0.83234571,46505.0,46504.0,0.14033567]
[1641235956808,0.83234571,46505.0,46504.0,0.16183548]
[1641235957008,0.83234571,46505.0,46504.0,0.66542148]
[1641235957210,0.83234571,46505.0,46504.0,0.48542148]
[1641235957408,1.101e-05,46507.0,46504.0,0.66541869]
[1641235957708,0.83390928,46510.0,46504.0,0.68141869]
[1641235958108,0.83390928,46510.0,46504.0,0.35783269]
[1641235958312,1.01390928,46510.0,46504.0,0.35783269]
[1641235958508,1.01390928,46510.0,46509.0,0.14033567]
[1641235958708,0.1801,46510.0,46509.0,0.14033567]
[1641235959510,0.1801,46510.0,46509.0,0.31633567]
[1641235959711,0.0001,46510.0,46509.0,0.31633567]
[1641235960916,0.0001,46510.0,46509.0,0.14033567]
[1641235961416,0.1801,46510.0,46509.0,0.14033567]
[1641235961617,0.1801,46510.0,46509.0,0.31733567]
[1641235962216,0.30354142,46510.0,46509.0,0.31733567]
[1641235962515,0.44287709,46510.0,46504.0,0.14033567]
[1641235962715,0.18,46505.0,46504.0,0.14033567]
[1641235962916,0.189794,46505.0,46504.0,0.14033567]
[1641235963317,0.56834394,46505.0,46504.0,0.14033567]
[1641235963518,0.190794,46505.0,46504.0,0.23633567]
[1641235964818,0.190794,46505.0,46504.0,0.14033567]
[1641235965618,0.198794,46505.0,46504.0,0.14033567]
[1641235966217,0.197794,46505.0,46504.0,0.14033567]
[1641235966817,0.009794,46505.0,46504.0,0.14033567]
[1641235967520,0.199794,46505.0,46504.0,0.14033567]
[1641235968221,0.199794,46505.0,46504.0,0.23463567]
[1641235969021,0.009794,46505.0,46504.0,0.23463567]
[1641235969421,0.14043567,46510.0,46504.0,0.23463567]
[1641235969621,0.188,46505.0,46504.0,0.23463567]
[1641235971024,0.14043567,46510.0,46504.0,0.23463567]
[1641235971227,0.14043567,46510.0,46507.0,0.02149979]
[1641235971424,0.0001,46510.0,46507.0,0.20149979]
[1641235971623,0.1841,46510.0,46507.0,0.20149979]
[1641235972826,0.0001,46510.0,46507.0,0.20149979]
[1641235973024,0.0001,46510.0,46507.0,0.02149979]
[1641235973627,0.1821,46510.0,46507.0,0.10149979]
[1641235974627,0.1821,46510.0,46509.0,0.14033567]
[1641235974827,0.0001,46510.0,46509.0,0.14033567]
[1641235975629,0.1841,46510.0,46509.0,0.30933567]
[1641235976930,0.0001,46510.0,46509.0,0.14033567]
[1641235977330,0.0001,46510.0,46509.0,0.161833]
[1641235977533,0.1821,46510.0,46509.0,0.519833]
[1641235977730,0.1821,46510.0,46509.0,0.518833]
[1641235977930,0.1821,46510.0,46509.0,0.338833]
[1641235978130,0.1821,46510.0,46509.0,0.518833]
[1641235978935,0.0001,46510.0,46509.0,0.341833]
[1641235979430,0.0001,46510.0,46509.0,0.161833]
[1641235979632,0.1821,46510.0,46509.0,0.343833]
[1641235980933,0.0001,46510.0,46509.0,0.161833]
[1641235981534,0.1821,46510.0,46509.0,0.335833]
[1641235982832,0.0001,46510.0,46509.0,0.161833]
[1641235983632,0.1831,46510.0,46509.0,0.336833]
[1641235984234,0.1831,46510.0,46509.0,3.34470325]
[1641235984433,0.71097815,46520.0,46509.0,3.42516325]
[1641235984633,0.71097815,46520.0,46510.0,0.18]
[1641235985032,0.71097815,46520.0,46517.0,0.14033567]
[1641235985633,0.71097815,46520.0,46517.0,0.32933567]
[1641235986836,0.71097815,46520.0,46517.0,0.14033567]
[1641235987236,0.71097815,46520.0,46518.0,0.02149467]
[1641235987635,0.0001,46520.0,46518.0,0.02149467]
[1641235989640,0.0001,46520.0,46518.0,0.21249467]
[1641235990857,0.0001,46520.0,46518.0,0.02149467]
[1641235991457,0.0001,46520.0,46518.0,0.21249467]
[1641235992858,0.0001,46520.0,46518.0,0.02149467]
[1641235993658,0.0001,46520.0,46518.0,0.21449467]
[1641235994859,0.0001,46520.0,46518.0,0.02149467]
[1641235995460,0.0001,46520.0,46518.0,0.21449467]
[1641235996264,0.1801,46520.0,46518.0,0.21449467]
[1641235996463,0.1801,46520.0,46518.0,0.193]
[1641235996763,0.1801,46520.0,46517.0,0.14033567]
[1641235997170,0.0001,46520.0,46517.0,0.14033567]
[1641235997466,0.0001,46520.0,46517.0,0.33233567]
[1641235998865,0.0001,46520.0,46517.0,0.14033567]
[1641235999464,0.0001,46520.0,46517.0,0.33233567]
[1641235999868,0.18,46518.0,46517.0,0.33233567]
[1641236000865,0.18,46518.0,46517.0,0.14033567]
[1641236001565,0.18,46518.0,46517.0,0.33233567]
[1641236001765,0.0001,46520.0,46517.0,0.33233567]
[1641236002267,0.18,46518.0,46517.0,0.33233567]
[1641236002770,0.18,46518.0,46517.0,0.14033567]
[1641236003670,0.0001,46520.0,46517.0,0.33233567]
[1641236003969,0.18,46518.0,46517.0,0.33233567]
[1641236004870,0.0001,46520.0,46517.0,0.14033567]
[1641236005170,0.18,46518.0,46517.0,0.14033567]
[1641236005773,0.18,46518.0,46517.0,0.33233567]
[1641236006772,0.18,46518.0,46517.0,0.14033567]
[1641236007073,0.0001,46520.0,46517.0,0.14033567]
[1641236007273,0.18,46518.0,46517.0,0.14033567]
[1641236007673,0.06,46518.0,46517.0,0.32833567]
[1641236007874,0.18,46518.0,46517.0,0.32833567]
[1641236008875,0.18,46518.0,46517.0,0.14033567]
[1641236009075,0.0001,46520.0,46517.0,0.14033567]
[1641236009476,0.0001,46520.0,46517.0,0.32833567]
[1641236010977,0.0001,46520.0,46517.0,0.14033567]
[1641236011579,0.0001,46520.0,46517.0,0.32733567]
[1641236012179,0.18,46518.0,46517.0,0.32733567]
[1641236012979,0.0001,46520.0,46517.0,0.32733567]
[1641236013384,0.0001,46520.0,46517.0,0.14033567]
[1641236013580,0.0001,46520.0,46517.0,0.32833567]
[1641236013781,0.1801,46520.0,46517.0,0.32833567]
[1641236014082,0.0001,46520.0,46517.0,0.32833567]
[1641236014783,0.0001,46520.0,46517.0,0.14033567]
[1641236015685,0.0001,46520.0,46517.0,0.33133567]
[1641236015987,1.20260421,46518.0,46517.0,0.33133567]
[1641236016786,1.20260421,46518.0,46517.0,0.14033567]
[1641236017685,1.20260421,46518.0,46517.0,0.33433567]
[1641236018885,1.20260421,46518.0,46517.0,0.14033567]
[1641236019687,1.20260421,46518.0,46517.0,0.33433567]
[1641236020088,0.0001,46520.0,46517.0,0.33433567]
[1641236021488,0.0001,46520.0,46517.0,0.14033567]